{"text_format":"3","workbook":"xlsx","n_sheets":3,"sheets":["Début","Roue du budget","Données"],"not_rendered":{"charts":1,"defined_names":5},"read":"whole","date_system":"1900"}

{"sheet":"Début","index":0,"n_rows":7,"n_cols":2,"rows_kept":7}
[null,"À propos du modèle"]
[null,"Effectuez le suivi de vos dépenses mensuelles et épargnes à l’aide de ce modèle."]
[null,"Entrez les détails des dépenses dans le tableau et les revenus mensuels pour calculer vos économies."]
[null,"Le graphique en anneau montrant les dépenses et les épargnes est mis à jour automatiquement."]
[null,"Remarque :"]
[null,"Des instructions supplémentaires sont disponibles dans la colonne A de la feuille de calcul de la ROUE DU BUDGET. Ce texte a été intentionnellement masqué. Pour supprimer le texte, sélectionnez la colonne A et choisissez SUPPRIMER. Pour afficher le texte, sélectionnez la colonne A et changez la couleur de la police."]
[null,"Pour en savoir plus sur un tableau, appuyez sur Maj, puis F10 à l’intérieur du tableau, sélectionnez l’option TABLEAU, enfin choisissez TEXTE DE REMPLACEMENT."]

{"sheet":"Roue du budget","index":1,"n_rows":23,"n_cols":7,"rows_kept":23,"merged":[[0,1,0,2],[0,3,0,6]]}
[null,"Roue du budget",null,"Remplissez le tableau dans ce modèle. Le graphique présente vos dépenses mensuelles par rapport à vos revenus mensuels. Il calcule également les pourcentages pour vous montrer combien vous avez économisé/épargné."]
[null,"Revenus \nMensuels",{"$nulls":4},"Épargne \nMontant"]
[null,{"v":5738,"d":"5,738 $"},{"$nulls":4},{"$f":"Épargne","v":{"v":2777,"d":"2,777 $"}}]
[{"$nulls":6},"Valeur calculée \nautomatiquement"]
[]
[null,"Dépenses","Catégorie","Montant","Fréquence","Montant mensuel","% du total"]
[null,"Assurance","Transport",{"v":300,"d":"300 $"},"Tous les 6 mois",{"$f":"IF(Dépenses[[#This Row],[Montant]]>0,IF(Dépenses[[#This Row],[Fréquence]]<>\"\",ROUND(IF(Dépenses[[#This Row],[Fréquence]]=\"Mensuel\",Dépenses[Montant],IF(Dépenses[[#This Row],[Fréquence]]=\"Hebdomadaire\",Dépenses[[#This Row],[Montant]]*4,IF(Dépenses[[#This Row],[Fréquence]]=\"Trimestre\",Dépenses[[#This Row],[Montant]]/3,IF(Dépenses[[#This Row],[Fréquence]]=\"Tous les 6 mois\",Dépenses[[#This Row],[Montant]]/6,IF(Dépenses[[#This Row],[Fréquence]]=\"Annuel\",Dépenses[[#This Row],[Montant]]/12,IF(Dépenses[[#This Row],[Fréquence]]=\"Toutes les deux semaines\",Dépenses[[#This Row],[Montant]]*2,IF(Dépenses[[#This Row],[Fréquence]]=\"Tous les deux mois\",Dépenses[[#This Row],[Montant]]/2,\"\"))))))),0),\"\"),\"\")","v":{"v":50,"d":"50 $"}},{"$f":"IF(Dépenses[[#This Row],[Montant mensuel]]<>\"\",Dépenses[[#This Row],[Montant mensuel]]/Revenus,\"\")","v":{"v":0.00871383757406762,"d":"1%"}}]
[null,"Gaz","Transport",{"v":25,"d":"25 $"},"Hebdomadaire",{"$f":"IF(Dépenses[[#This Row],[Montant]]>0,IF(Dépenses[[#This Row],[Fréquence]]<>\"\",ROUND(IF(Dépenses[[#This Row],[Fréquence]]=\"Mensuel\",Dépenses[Montant],IF(Dépenses[[#This Row],[Fréquence]]=\"Hebdomadaire\",Dépenses[[#This Row],[Montant]]*4,IF(Dépenses[[#This Row],[Fréquence]]=\"Trimestre\",Dépenses[[#This Row],[Montant]]/3,IF(Dépenses[[#This Row],[Fréquence]]=\"Tous les 6 mois\",Dépenses[[#This Row],[Montant]]/6,IF(Dépenses[[#This Row],[Fréquence]]=\"Annuel\",Dépenses[[#This Row],[Montant]]/12,IF(Dépenses[[#This Row],[Fréquence]]=\"Toutes les deux semaines\",Dépenses[[#This Row],[Montant]]*2,IF(Dépenses[[#This Row],[Fréquence]]=\"Tous les deux mois\",Dépenses[[#This Row],[Montant]]/2,\"\"))))))),0),\"\"),\"\")","v":{"v":100,"d":"100 $"}},{"$f":"IF(Dépenses[[#This Row],[Montant mensuel]]<>\"\",Dépenses[[#This Row],[Montant mensuel]]/Revenus,\"\")","v":{"v":0.01742767514813524,"d":"2%"}}]
[null,"Prêt automobile","Transport",{"v":200,"d":"200 $"},"Mensuel",{"$f":"IF(Dépenses[[#This Row],[Montant]]>0,IF(Dépenses[[#This Row],[Fréquence]]<>\"\",ROUND(IF(Dépenses[[#This Row],[Fréquence]]=\"Mensuel\",Dépenses[Montant],IF(Dépenses[[#This Row],[Fréquence]]=\"Hebdomadaire\",Dépenses[[#This Row],[Montant]]*4,IF(Dépenses[[#This Row],[Fréquence]]=\"Trimestre\",Dépenses[[#This Row],[Montant]]/3,IF(Dépenses[[#This Row],[Fréquence]]=\"Tous les 6 mois\",Dépenses[[#This Row],[Montant]]/6,IF(Dépenses[[#This Row],[Fréquence]]=\"Annuel\",Dépenses[[#This Row],[Montant]]/12,IF(Dépenses[[#This Row],[Fréquence]]=\"Toutes les deux semaines\",Dépenses[[#This Row],[Montant]]*2,IF(Dépenses[[#This Row],[Fréquence]]=\"Tous les deux mois\",Dépenses[[#This Row],[Montant]]/2,\"\"))))))),0),\"\"),\"\")","v":{"v":200,"d":"200 $"}},{"$f":"IF(Dépenses[[#This Row],[Montant mensuel]]<>\"\",Dépenses[[#This Row],[Montant mensuel]]/Revenus,\"\")","v":{"v":0.03485535029627048,"d":"3%"}}]
[null,"Prêt immobilier","Domicile",{"v":1600,"d":"1,600 $"},"Mensuel",{"$f":"IF(Dépenses[[#This Row],[Montant]]>0,IF(Dépenses[[#This Row],[Fréquence]]<>\"\",ROUND(IF(Dépenses[[#This Row],[Fréquence]]=\"Mensuel\",Dépenses[Montant],IF(Dépenses[[#This Row],[Fréquence]]=\"Hebdomadaire\",Dépenses[[#This Row],[Montant]]*4,IF(Dépenses[[#This Row],[Fréquence]]=\"Trimestre\",Dépenses[[#This Row],[Montant]]/3,IF(Dépenses[[#This Row],[Fréquence]]=\"Tous les 6 mois\",Dépenses[[#This Row],[Montant]]/6,IF(Dépenses[[#This Row],[Fréquence]]=\"Annuel\",Dépenses[[#This Row],[Montant]]/12,IF(Dépenses[[#This Row],[Fréquence]]=\"Toutes les deux semaines\",Dépenses[[#This Row],[Montant]]*2,IF(Dépenses[[#This Row],[Fréquence]]=\"Tous les deux mois\",Dépenses[[#This Row],[Montant]]/2,\"\"))))))),0),\"\"),\"\")","v":{"v":1600,"d":"1,600 $"}},{"$f":"IF(Dépenses[[#This Row],[Montant mensuel]]<>\"\",Dépenses[[#This Row],[Montant mensuel]]/Revenus,\"\")","v":{"v":0.27884280237016384,"d":"28%"}}]
[null,"Abonnement câble","Domicile",{"v":60,"d":"60 $"},"Mensuel",{"$f":"IF(Dépenses[[#This Row],[Montant]]>0,IF(Dépenses[[#This Row],[Fréquence]]<>\"\",ROUND(IF(Dépenses[[#This Row],[Fréquence]]=\"Mensuel\",Dépenses[Montant],IF(Dépenses[[#This Row],[Fréquence]]=\"Hebdomadaire\",Dépenses[[#This Row],[Montant]]*4,IF(Dépenses[[#This Row],[Fréquence]]=\"Trimestre\",Dépenses[[#This Row],[Montant]]/3,IF(Dépenses[[#This Row],[Fréquence]]=\"Tous les 6 mois\",Dépenses[[#This Row],[Montant]]/6,IF(Dépenses[[#This Row],[Fréquence]]=\"Annuel\",Dépenses[[#This Row],[Montant]]/12,IF(Dépenses[[#This Row],[Fréquence]]=\"Toutes les deux semaines\",Dépenses[[#This Row],[Montant]]*2,IF(Dépenses[[#This Row],[Fréquence]]=\"Tous les deux mois\",Dépenses[[#This Row],[Montant]]/2,\"\"))))))),0),\"\"),\"\")","v":{"v":60,"d":"60 $"}},{"$f":"IF(Dépenses[[#This Row],[Montant mensuel]]<>\"\",Dépenses[[#This Row],[Montant mensuel]]/Revenus,\"\")","v":{"v":0.010456605088881143,"d":"1%"}}]
[null,"Soirée ciné","Loisirs",{"v":70,"d":"70 $"},"Mensuel",{"$f":"IF(Dépenses[[#This Row],[Montant]]>0,IF(Dépenses[[#This Row],[Fréquence]]<>\"\",ROUND(IF(Dépenses[[#This Row],[Fréquence]]=\"Mensuel\",Dépenses[Montant],IF(Dépenses[[#This Row],[Fréquence]]=\"Hebdomadaire\",Dépenses[[#This Row],[Montant]]*4,IF(Dépenses[[#This Row],[Fréquence]]=\"Trimestre\",Dépenses[[#This Row],[Montant]]/3,IF(Dépenses[[#This Row],[Fréquence]]=\"Tous les 6 mois\",Dépenses[[#This Row],[Montant]]/6,IF(Dépenses[[#This Row],[Fréquence]]=\"Annuel\",Dépenses[[#This Row],[Montant]]/12,IF(Dépenses[[#This Row],[Fréquence]]=\"Toutes les deux semaines\",Dépenses[[#This Row],[Montant]]*2,IF(Dépenses[[#This Row],[Fréquence]]=\"Tous les deux mois\",Dépenses[[#This Row],[Montant]]/2,\"\"))))))),0),\"\"),\"\")","v":{"v":70,"d":"70 $"}},{"$f":"IF(Dépenses[[#This Row],[Montant mensuel]]<>\"\",Dépenses[[#This Row],[Montant mensuel]]/Revenus,\"\")","v":{"v":0.012199372603694667,"d":"1%"}}]
[null,"Chaussures de sport","Divers",{"v":300,"d":"300 $"},"Annuel",{"$f":"IF(Dépenses[[#This Row],[Montant]]>0,IF(Dépenses[[#This Row],[Fréquence]]<>\"\",ROUND(IF(Dépenses[[#This Row],[Fréquence]]=\"Mensuel\",Dépenses[Montant],IF(Dépenses[[#This Row],[Fréquence]]=\"Hebdomadaire\",Dépenses[[#This Row],[Montant]]*4,IF(Dépenses[[#This Row],[Fréquence]]=\"Trimestre\",Dépenses[[#This Row],[Montant]]/3,IF(Dépenses[[#This Row],[Fréquence]]=\"Tous les 6 mois\",Dépenses[[#This Row],[Montant]]/6,IF(Dépenses[[#This Row],[Fréquence]]=\"Annuel\",Dépenses[[#This Row],[Montant]]/12,IF(Dépenses[[#This Row],[Fréquence]]=\"Toutes les deux semaines\",Dépenses[[#This Row],[Montant]]*2,IF(Dépenses[[#This Row],[Fréquence]]=\"Tous les deux mois\",Dépenses[[#This Row],[Montant]]/2,\"\"))))))),0),\"\"),\"\")","v":{"v":25,"d":"25 $"}},{"$f":"IF(Dépenses[[#This Row],[Montant mensuel]]<>\"\",Dépenses[[#This Row],[Montant mensuel]]/Revenus,\"\")","v":{"v":0.00435691878703381,"d":"0%"}}]
[null,"Nourriture pour chien","Divers",{"v":60,"d":"60 $"},"Mensuel",{"$f":"IF(Dépenses[[#This Row],[Montant]]>0,IF(Dépenses[[#This Row],[Fréquence]]<>\"\",ROUND(IF(Dépenses[[#This Row],[Fréquence]]=\"Mensuel\",Dépenses[Montant],IF(Dépenses[[#This Row],[Fréquence]]=\"Hebdomadaire\",Dépenses[[#This Row],[Montant]]*4,IF(Dépenses[[#This Row],[Fréquence]]=\"Trimestre\",Dépenses[[#This Row],[Montant]]/3,IF(Dépenses[[#This Row],[Fréquence]]=\"Tous les 6 mois\",Dépenses[[#This Row],[Montant]]/6,IF(Dépenses[[#This Row],[Fréquence]]=\"Annuel\",Dépenses[[#This Row],[Montant]]/12,IF(Dépenses[[#This Row],[Fréquence]]=\"Toutes les deux semaines\",Dépenses[[#This Row],[Montant]]*2,IF(Dépenses[[#This Row],[Fréquence]]=\"Tous les deux mois\",Dépenses[[#This Row],[Montant]]/2,\"\"))))))),0),\"\"),\"\")","v":{"v":60,"d":"60 $"}},{"$f":"IF(Dépenses[[#This Row],[Montant mensuel]]<>\"\",Dépenses[[#This Row],[Montant mensuel]]/Revenus,\"\")","v":{"v":0.010456605088881143,"d":"1%"}}]
[null,"Assurance animaux de compagnie","Divers",{"v":70,"d":"70 $"},"Annuel",{"$f":"IF(Dépenses[[#This Row],[Montant]]>0,IF(Dépenses[[#This Row],[Fréquence]]<>\"\",ROUND(IF(Dépenses[[#This Row],[Fréquence]]=\"Mensuel\",Dépenses[Montant],IF(Dépenses[[#This Row],[Fréquence]]=\"Hebdomadaire\",Dépenses[[#This Row],[Montant]]*4,IF(Dépenses[[#This Row],[Fréquence]]=\"Trimestre\",Dépenses[[#This Row],[Montant]]/3,IF(Dépenses[[#This Row],[Fréquence]]=\"Tous les 6 mois\",Dépenses[[#This Row],[Montant]]/6,IF(Dépenses[[#This Row],[Fréquence]]=\"Annuel\",Dépenses[[#This Row],[Montant]]/12,IF(Dépenses[[#This Row],[Fréquence]]=\"Toutes les deux semaines\",Dépenses[[#This Row],[Montant]]*2,IF(Dépenses[[#This Row],[Fréquence]]=\"Tous les deux mois\",Dépenses[[#This Row],[Montant]]/2,\"\"))))))),0),\"\"),\"\")","v":{"v":6,"d":"6 $"}},{"$f":"IF(Dépenses[[#This Row],[Montant mensuel]]<>\"\",Dépenses[[#This Row],[Montant mensuel]]/Revenus,\"\")","v":{"v":1.0456605088881143E-3,"d":"0%"}}]
[null,"Épicerie","Aliments",{"v":100,"d":"100 $"},"Hebdomadaire",{"$f":"IF(Dépenses[[#This Row],[Montant]]>0,IF(Dépenses[[#This Row],[Fréquence]]<>\"\",ROUND(IF(Dépenses[[#This Row],[Fréquence]]=\"Mensuel\",Dépenses[Montant],IF(Dépenses[[#This Row],[Fréquence]]=\"Hebdomadaire\",Dépenses[[#This Row],[Montant]]*4,IF(Dépenses[[#This Row],[Fréquence]]=\"Trimestre\",Dépenses[[#This Row],[Montant]]/3,IF(Dépenses[[#This Row],[Fréquence]]=\"Tous les 6 mois\",Dépenses[[#This Row],[Montant]]/6,IF(Dépenses[[#This Row],[Fréquence]]=\"Annuel\",Dépenses[[#This Row],[Montant]]/12,IF(Dépenses[[#This Row],[Fréquence]]=\"Toutes les deux semaines\",Dépenses[[#This Row],[Montant]]*2,IF(Dépenses[[#This Row],[Fréquence]]=\"Tous les deux mois\",Dépenses[[#This Row],[Montant]]/2,\"\"))))))),0),\"\"),\"\")","v":{"v":400,"d":"400 $"}},{"$f":"IF(Dépenses[[#This Row],[Montant mensuel]]<>\"\",Dépenses[[#This Row],[Montant mensuel]]/Revenus,\"\")","v":{"v":0.06971070059254096,"d":"7%"}}]
[null,"Café","Aliments",{"v":25,"d":"25 $"},"Hebdomadaire",{"$f":"IF(Dépenses[[#This Row],[Montant]]>0,IF(Dépenses[[#This Row],[Fréquence]]<>\"\",ROUND(IF(Dépenses[[#This Row],[Fréquence]]=\"Mensuel\",Dépenses[Montant],IF(Dépenses[[#This Row],[Fréquence]]=\"Hebdomadaire\",Dépenses[[#This Row],[Montant]]*4,IF(Dépenses[[#This Row],[Fréquence]]=\"Trimestre\",Dépenses[[#This Row],[Montant]]/3,IF(Dépenses[[#This Row],[Fréquence]]=\"Tous les 6 mois\",Dépenses[[#This Row],[Montant]]/6,IF(Dépenses[[#This Row],[Fréquence]]=\"Annuel\",Dépenses[[#This Row],[Montant]]/12,IF(Dépenses[[#This Row],[Fréquence]]=\"Toutes les deux semaines\",Dépenses[[#This Row],[Montant]]*2,IF(Dépenses[[#This Row],[Fréquence]]=\"Tous les deux mois\",Dépenses[[#This Row],[Montant]]/2,\"\"))))))),0),\"\"),\"\")","v":{"v":100,"d":"100 $"}},{"$f":"IF(Dépenses[[#This Row],[Montant mensuel]]<>\"\",Dépenses[[#This Row],[Montant mensuel]]/Revenus,\"\")","v":{"v":0.01742767514813524,"d":"2%"}}]
[null,"Équipement de l’alpinisme","Loisirs",{"v":170,"d":"170 $"},"Annuel",{"$f":"IF(Dépenses[[#This Row],[Montant]]>0,IF(Dépenses[[#This Row],[Fréquence]]<>\"\",ROUND(IF(Dépenses[[#This Row],[Fréquence]]=\"Mensuel\",Dépenses[Montant],IF(Dépenses[[#This Row],[Fréquence]]=\"Hebdomadaire\",Dépenses[[#This Row],[Montant]]*4,IF(Dépenses[[#This Row],[Fréquence]]=\"Trimestre\",Dépenses[[#This Row],[Montant]]/3,IF(Dépenses[[#This Row],[Fréquence]]=\"Tous les 6 mois\",Dépenses[[#This Row],[Montant]]/6,IF(Dépenses[[#This Row],[Fréquence]]=\"Annuel\",Dépenses[[#This Row],[Montant]]/12,IF(Dépenses[[#This Row],[Fréquence]]=\"Toutes les deux semaines\",Dépenses[[#This Row],[Montant]]*2,IF(Dépenses[[#This Row],[Fréquence]]=\"Tous les deux mois\",Dépenses[[#This Row],[Montant]]/2,\"\"))))))),0),\"\"),\"\")","v":{"v":14,"d":"14 $"}},{"$f":"IF(Dépenses[[#This Row],[Montant mensuel]]<>\"\",Dépenses[[#This Row],[Montant mensuel]]/Revenus,\"\")","v":{"v":2.4398745207389336E-3,"d":"0%"}}]
[null,"Abonnement salle de sport","Divers",{"v":60,"d":"60 $"},"Mensuel",{"$f":"IF(Dépenses[[#This Row],[Montant]]>0,IF(Dépenses[[#This Row],[Fréquence]]<>\"\",ROUND(IF(Dépenses[[#This Row],[Fréquence]]=\"Mensuel\",Dépenses[Montant],IF(Dépenses[[#This Row],[Fréquence]]=\"Hebdomadaire\",Dépenses[[#This Row],[Montant]]*4,IF(Dépenses[[#This Row],[Fréquence]]=\"Trimestre\",Dépenses[[#This Row],[Montant]]/3,IF(Dépenses[[#This Row],[Fréquence]]=\"Tous les 6 mois\",Dépenses[[#This Row],[Montant]]/6,IF(Dépenses[[#This Row],[Fréquence]]=\"Annuel\",Dépenses[[#This Row],[Montant]]/12,IF(Dépenses[[#This Row],[Fréquence]]=\"Toutes les deux semaines\",Dépenses[[#This Row],[Montant]]*2,IF(Dépenses[[#This Row],[Fréquence]]=\"Tous les deux mois\",Dépenses[[#This Row],[Montant]]/2,\"\"))))))),0),\"\"),\"\")","v":{"v":60,"d":"60 $"}},{"$f":"IF(Dépenses[[#This Row],[Montant mensuel]]<>\"\",Dépenses[[#This Row],[Montant mensuel]]/Revenus,\"\")","v":{"v":0.010456605088881143,"d":"1%"}}]
[null,"Casque audio","Loisirs",{"v":50,"d":"50 $"},"Annuel",{"$f":"IF(Dépenses[[#This Row],[Montant]]>0,IF(Dépenses[[#This Row],[Fréquence]]<>\"\",ROUND(IF(Dépenses[[#This Row],[Fréquence]]=\"Mensuel\",Dépenses[Montant],IF(Dépenses[[#This Row],[Fréquence]]=\"Hebdomadaire\",Dépenses[[#This Row],[Montant]]*4,IF(Dépenses[[#This Row],[Fréquence]]=\"Trimestre\",Dépenses[[#This Row],[Montant]]/3,IF(Dépenses[[#This Row],[Fréquence]]=\"Tous les 6 mois\",Dépenses[[#This Row],[Montant]]/6,IF(Dépenses[[#This Row],[Fréquence]]=\"Annuel\",Dépenses[[#This Row],[Montant]]/12,IF(Dépenses[[#This Row],[Fréquence]]=\"Toutes les deux semaines\",Dépenses[[#This Row],[Montant]]*2,IF(Dépenses[[#This Row],[Fréquence]]=\"Tous les deux mois\",Dépenses[[#This Row],[Montant]]/2,\"\"))))))),0),\"\"),\"\")","v":{"v":4,"d":"4 $"}},{"$f":"IF(Dépenses[[#This Row],[Montant mensuel]]<>\"\",Dépenses[[#This Row],[Montant mensuel]]/Revenus,\"\")","v":{"v":6.9710700592540956E-4,"d":"0%"}}]
[null,"Coupe de cheveux","Divers",{"v":70,"d":"70 $"},"Mensuel",{"$f":"IF(Dépenses[[#This Row],[Montant]]>0,IF(Dépenses[[#This Row],[Fréquence]]<>\"\",ROUND(IF(Dépenses[[#This Row],[Fréquence]]=\"Mensuel\",Dépenses[Montant],IF(Dépenses[[#This Row],[Fréquence]]=\"Hebdomadaire\",Dépenses[[#This Row],[Montant]]*4,IF(Dépenses[[#This Row],[Fréquence]]=\"Trimestre\",Dépenses[[#This Row],[Montant]]/3,IF(Dépenses[[#This Row],[Fréquence]]=\"Tous les 6 mois\",Dépenses[[#This Row],[Montant]]/6,IF(Dépenses[[#This Row],[Fréquence]]=\"Annuel\",Dépenses[[#This Row],[Montant]]/12,IF(Dépenses[[#This Row],[Fréquence]]=\"Toutes les deux semaines\",Dépenses[[#This Row],[Montant]]*2,IF(Dépenses[[#This Row],[Fréquence]]=\"Tous les deux mois\",Dépenses[[#This Row],[Montant]]/2,\"\"))))))),0),\"\"),\"\")","v":{"v":70,"d":"70 $"}},{"$f":"IF(Dépenses[[#This Row],[Montant mensuel]]<>\"\",Dépenses[[#This Row],[Montant mensuel]]/Revenus,\"\")","v":{"v":0.012199372603694667,"d":"1%"}}]
[null,"Jeux vidéo","Loisirs",{"v":100,"d":"100 $"},"Mensuel",{"$f":"IF(Dépenses[[#This Row],[Montant]]>0,IF(Dépenses[[#This Row],[Fréquence]]<>\"\",ROUND(IF(Dépenses[[#This Row],[Fréquence]]=\"Mensuel\",Dépenses[Montant],IF(Dépenses[[#This Row],[Fréquence]]=\"Hebdomadaire\",Dépenses[[#This Row],[Montant]]*4,IF(Dépenses[[#This Row],[Fréquence]]=\"Trimestre\",Dépenses[[#This Row],[Montant]]/3,IF(Dépenses[[#This Row],[Fréquence]]=\"Tous les 6 mois\",Dépenses[[#This Row],[Montant]]/6,IF(Dépenses[[#This Row],[Fréquence]]=\"Annuel\",Dépenses[[#This Row],[Montant]]/12,IF(Dépenses[[#This Row],[Fréquence]]=\"Toutes les deux semaines\",Dépenses[[#This Row],[Montant]]*2,IF(Dépenses[[#This Row],[Fréquence]]=\"Tous les deux mois\",Dépenses[[#This Row],[Montant]]/2,\"\"))))))),0),\"\"),\"\")","v":{"v":100,"d":"100 $"}},{"$f":"IF(Dépenses[[#This Row],[Montant mensuel]]<>\"\",Dépenses[[#This Row],[Montant mensuel]]/Revenus,\"\")","v":{"v":0.01742767514813524,"d":"2%"}}]
[null,"Vêtements","Divers",{"v":500,"d":"500 $"},"Annuel",{"$f":"IF(Dépenses[[#This Row],[Montant]]>0,IF(Dépenses[[#This Row],[Fréquence]]<>\"\",ROUND(IF(Dépenses[[#This Row],[Fréquence]]=\"Mensuel\",Dépenses[Montant],IF(Dépenses[[#This Row],[Fréquence]]=\"Hebdomadaire\",Dépenses[[#This Row],[Montant]]*4,IF(Dépenses[[#This Row],[Fréquence]]=\"Trimestre\",Dépenses[[#This Row],[Montant]]/3,IF(Dépenses[[#This Row],[Fréquence]]=\"Tous les 6 mois\",Dépenses[[#This Row],[Montant]]/6,IF(Dépenses[[#This Row],[Fréquence]]=\"Annuel\",Dépenses[[#This Row],[Montant]]/12,IF(Dépenses[[#This Row],[Fréquence]]=\"Toutes les deux semaines\",Dépenses[[#This Row],[Montant]]*2,IF(Dépenses[[#This Row],[Fréquence]]=\"Tous les deux mois\",Dépenses[[#This Row],[Montant]]/2,\"\"))))))),0),\"\"),\"\")","v":{"v":42,"d":"42 $"}},{"$f":"IF(Dépenses[[#This Row],[Montant mensuel]]<>\"\",Dépenses[[#This Row],[Montant mensuel]]/Revenus,\"\")","v":{"v":7.3196235622168E-3,"d":"1%"}}]

{"sheet":"Données","index":2,"n_rows":10,"n_cols":5,"rows_kept":10,"hidden":true}
["Cette feuille doit rester masquée"]
["Catégories","Montant par catégorie","Pourcentage du total","Fréquence","Épargne"]
["Domicile",{"$f":"IF(SUMIF(Dépenses[Catégorie],\"Domicile\",Dépenses[Montant mensuel])>0,SUMIF(Dépenses[Catégorie],\"Domicile\",Dépenses[Montant mensuel]),NA())","v":{"v":1660,"d":"1,660 $"}},{"$f":"IF(B3>0,B3/Revenus,\"\")","v":{"v":0.289299407459045,"d":"29%"}},"Hebdomadaire",{"$f":"Revenus-SUM(Dépenses[Montant mensuel])","v":{"v":2777,"d":"2,777 $"}}]
["Loisirs",{"$f":"IF(SUMIF(Dépenses[Catégorie],\"Loisirs\",Dépenses[Montant mensuel])>0,SUMIF(Dépenses[Catégorie],\"Loisirs\",Dépenses[Montant mensuel]),NA())","v":{"v":188,"d":"188 $"}},{"$f":"IF(B4>0,B4/Revenus,\"\")","v":{"v":0.03276402927849425,"d":"3%"}},"Mensuel"]
["Transport",{"$f":"IF(SUMIF(Dépenses[Catégorie],\"Transport\",Dépenses[Montant mensuel])>0,SUMIF(Dépenses[Catégorie],\"Transport\",Dépenses[Montant mensuel]),NA())","v":{"v":350,"d":"350 $"}},{"$f":"IF(B5>0,B5/Revenus,\"\")","v":{"v":0.06099686301847333,"d":"6%"}},"Trimestre"]
["Aliments",{"$f":"IF(SUMIF(Dépenses[Catégorie],\"Aliments\",Dépenses[Montant mensuel])>0,SUMIF(Dépenses[Catégorie],\"Aliments\",Dépenses[Montant mensuel]),NA())","v":{"v":500,"d":"500 $"}},{"$f":"IF(B6>0,B6/Revenus,\"\")","v":{"v":0.08713837574067619,"d":"9%"}},"Tous les 6 mois"]
["Divers",{"$f":"IF(SUMIF(Dépenses[Catégorie],\"Divers\",Dépenses[Montant mensuel])>0,SUMIF(Dépenses[Catégorie],\"Divers\",Dépenses[Montant mensuel]),NA())","v":{"v":263,"d":"263 $"}},{"$f":"IF(B7>0,B7/Revenus,\"\")","v":{"v":0.04583478563959568,"d":"5%"}},"Annuel"]
["Épargne",{"$f":"IF(E3>0,E3,NA())","v":{"v":2777,"d":"2,777 $"}},{"$f":"IF(B8>0,B8/Revenus,\"\")","v":{"v":0.4839665388637156,"d":"48%"}},"Toutes les deux semaines"]
[{"$nulls":3},"Tous les deux mois"]
[null,"TOTAL :",{"$f":"SUM(C3:C8)","v":{"v":1,"d":"100%"}}]